bitfinex/quotes_SOLUSD_20230105
["timestamp","ask_amount","ask_price","bid_price","bid_amount"]
[1672900132532,67.32692375,13.286,13.28,226.0]
[1672900132850,14.91762585,13.285,13.28,226.0]
[1672900139464,20.0,13.284,13.279,226.0]
[1672900139878,108.72402775,13.283,13.279,226.0]
[1672900140196,34.91762585,13.282,13.279,226.0]
[1672900140405,34.91762585,13.282,13.274,226.0]
[1672900140617,14.91762585,13.281,13.274,226.0]
[1672900141036,108.72402775,13.281,13.274,226.0]
[1672900141458,14.91762585,13.28,13.273,226.0]
[1672900142299,67.32692375,13.28,13.273,226.0]
[1672900142705,14.91762585,13.279,13.273,226.0]
[1672900143347,67.32692375,13.279,13.273,226.0]
[1672900143778,14.91762585,13.278,13.273,226.0]
[1672900146204,14.91762585,13.278,13.273,282.54]
[1672900147354,14.91762585,13.278,13.273,226.0]
[1672900148200,41.397104,13.281,13.273,282.54]
[1672900148407,14.91762585,13.28,13.273,282.54]
[1672900148626,14.91762585,13.28,13.273,226.0]
[1672900151343,20.0,13.302,13.275,246.0]
[1672900151552,14.91762585,13.284,13.276,20.0]
[1672900151768,14.91762585,13.284,13.278,20.0]
[1672900152171,14.91762585,13.284,13.281,20.0]
[1672900152596,56.47,13.291,13.281,20.0]
[1672900152814,14.91762585,13.29,13.282,226.0]
[1672900153656,56.45,13.295,13.282,226.0]
[1672900153860,56.45,13.295,13.285,20.0]
[1672900153861,14.09572778,13.293,13.285,20.0]
[1672900154723,14.09572778,13.293,13.284,226.0]
[1672900154927,14.09572778,13.293,13.285,226.0]
[1672900155783,14.09572778,13.293,13.283,226.0]
[1672900155995,14.09572778,13.293,13.284,20.0]
[1672900156198,14.09572778,13.293,13.285,226.0]
[1672900157238,14.09572778,13.293,13.283,226.0]
[1672900157666,14.09572778,13.293,13.285,226.0]
[1672900158702,62.20282599,13.293,13.283,226.0]
[1672900159556,62.20282599,13.293,13.282,226.0]
[1672900160511,56.46,13.292,13.282,226.0]
[1672900160701,56.46,13.292,13.281,226.0]
[1672900161037,14.09572778,13.291,13.281,226.0]
[1672900161254,14.09572778,13.291,13.283,226.0]
[1672900162612,14.09572778,13.291,13.281,226.0]
[1672900163013,14.09572778,13.291,13.282,20.0]
[1672900163224,14.09572778,13.291,13.283,226.0]
[1672900163556,14.09572778,13.291,13.284,20.0]
[1672900164688,14.09572778,13.291,13.282,226.0]
[1672900165668,14.09572778,13.291,13.281,226.0]
[1672900165865,14.09572778,13.291,13.282,20.0]
[1672900166070,14.09572778,13.291,13.283,226.0]
[1672900166802,62.20282599,13.291,13.283,226.0]
[1672900167008,62.20282599,13.291,13.281,226.0]
[1672900167242,14.72051763,13.29,13.281,226.0]
[1672900167434,71.19051763,13.29,13.275,56.54]
[1672900167651,52.4092979,13.289,13.275,56.54]
[1672900167981,98.69509677,13.289,13.268,108.7103]
[1672900168189,169.62107309,13.288,13.273,56.54]
[1672900168495,222.03037099,13.288,13.27,226.0]
[1672900168706,98.69509677,13.287,13.27,226.0]
[1672900168920,145.55037099,13.287,13.272,226.0]
[1672900169145,178.94642993,13.286,13.272,226.0]
[1672900169321,225.80170415,13.286,13.272,226.0]
[1672900169532,102.45642993,13.285,13.272,226.0]
[1672900169741,149.31170415,13.285,13.27,226.0]
[1672900169952,158.95642993,13.284,13.269,226.0]
[1672900170179,20.0,13.283,13.269,226.0]
[1672900170398,122.45642993,13.283,13.269,226.0]
[1672900170595,158.96642993,13.282,13.269,226.0]
[1672900170810,205.82170415,13.282,13.263,226.0]
[1672900171127,205.82170415,13.282,13.261,226.0]
[1672900171128,169.31170415,13.281,13.261,226.0]
[1672900171336,172.02617415,13.281,13.261,226.0]
[1672900171533,113.03329459,13.28,13.261,226.0]
[1672900171739,165.44259249,13.28,13.261,226.0]
[1672900171950,57.34275543,13.279,13.261,226.0]
[1672900172280,35.53997847,13.278,13.256,226.0]
[1672900172492,179.33872,13.278,13.256,282.62]
[1672900172708,102.81872,13.277,13.256,282.62]
[1672900173034,122.81872,13.276,13.256,282.62]
[1672900173229,226.20399422,13.276,13.256,282.62]
[1672900173423,149.67399422,13.275,13.256,282.62]
[1672900173858,113.88275543,13.274,13.256,282.62]
[1672900174178,77.34275543,13.273,13.257,20.0]
[1672900174577,113.89275543,13.272,13.259,226.0]
[1672900175202,15.53997847,13.271,13.259,226.0]
[1672900175629,56.56,13.27,13.256,20.0]
[1672900176050,15.53997847,13.269,13.258,246.0]
[1672900176485,15.53997847,13.269,13.26,226.0]
[1672900176896,98.35277696,13.272,13.26,226.0]
[1672900177111,113.89275543,13.272,13.26,226.0]
[1672900177546,113.89275543,13.272,13.255,246.0]
[1672900177754,57.34275543,13.272,13.257,226.0]
[1672900177973,56.55,13.271,13.258,20.0]
[1672900178276,56.55,13.271,13.259,226.0]
[1672900178491,41.80277696,13.272,13.259,226.0]
[1672900178798,41.80277696,13.272,13.261,226.0]
[1672900179015,56.54,13.275,13.261,226.0]
[1672900179016,56.54,13.275,13.262,20.0]
[1672900179221,41.80277696,13.276,13.263,226.0]
[1672900179625,56.51,13.28,13.265,226.0]
[1672900179841,15.53997847,13.277,13.265,226.0]
[1672900180063,41.80277696,13.281,13.267,226.0]
[1672900180604,15.53997847,13.28,13.269,226.0]
[1672900181017,15.53997847,13.28,13.271,226.0]
[1672900181858,57.34275543,13.28,13.271,226.0]
[1672900182054,57.34275543,13.28,13.269,226.0]
[1672900182264,15.53997847,13.279,13.269,226.0]
[1672900182474,15.53997847,13.279,13.271,226.0]
[1672900183439,15.53997847,13.279,13.269,226.0]
[1672900183642,61.01594304,13.279,13.269,226.0]
[1672900183857,206.19399422,13.279,13.269,226.0]
[1672900184054,15.53997847,13.278,13.269,226.0]
[1672900184901,61.01594304,13.278,13.269,226.0]
[1672900185224,15.53997847,13.277,13.268,56.57]
[1672900185433,15.53997847,13.277,13.265,226.0]
[1672900185634,210.66401575,13.276,13.265,226.0]
[1672900186064,102.81872,13.275,13.265,226.0]
[1672900186386,87.27874153,13.274,13.262,226.0]
[1672900186693,41.80277696,13.273,13.263,20.0]
[1672900186901,57.70583384,13.273,13.263,20.0]
[1672900187219,15.90305688,13.272,13.263,20.0]
[1672900187539,57.70583384,13.272,13.262,282.59]
[1672900187723,57.70583384,13.272,13.262,226.0]
[1672900187937,15.90305688,13.271,13.262,282.59]
[1672900189633,15.90305688,13.271,13.262,226.0]
[1672900191842,15.90305688,13.271,13.259,56.6]
[1672900192173,20.0,13.269,13.259,56.6]
[1672900192375,20.0,13.269,13.255,20.0]
[1672900192702,150.03707263,13.268,13.256,56.62]
[1672900192906,20.0,13.267,13.256,56.62]
[1672900193097,15.90305688,13.267,13.257,226.0]
[1672900193311,15.90305688,13.266,13.257,226.0]
[1672900193532,15.90305688,13.266,13.259,226.0]
[1672900194462,15.90305688,13.266,13.26,226.0]
[1672900195834,15.90305688,13.266,13.257,226.0]
[1672900196044,15.90305688,13.266,13.258,20.0]
[1672900196255,15.90305688,13.266,13.259,226.0]
[1672900197307,15.90305688,13.266,13.258,20.0]
[1672900198156,15.90305688,13.266,13.257,226.0]
[1672900198579,15.90305688,13.266,13.259,226.0]
[1672900199742,15.90305688,13.266,13.258,20.0]
[1672900199936,15.90305688,13.266,13.257,226.0]
[1672900200149,15.90305688,13.266,13.258,282.61]
[1672900200358,15.90305688,13.266,13.258,226.0]
[1672900201204,15.90305688,13.266,13.257,226.0]
[1672900201734,61.37902145,13.266,13.257,226.0]
[1672900201938,61.37902145,13.266,13.258,282.61]
[1672900202138,15.90305688,13.265,13.258,226.0]
[1672900202784,45.47596457,13.266,13.259,282.6]
[1672900202982,41.80277696,13.268,13.259,282.6]
[1672900202983,41.80277696,13.268,13.259,226.0]
[1672900203195,41.80277696,13.268,13.261,226.0]
[1672900203405,41.80277696,13.268,13.262,20.0]
[1672900203629,45.47596457,13.273,13.264,20.0]
[1672900203845,41.80277696,13.272,13.264,20.0]
[1672900204372,56.51,13.281,13.266,226.0]
[1672900204682,15.90305688,13.277,13.267,20.0]
[1672900204872,15.90305688,13.277,13.268,226.0]
[1672900205307,15.90305688,13.277,13.27,226.0]
[1672900206246,15.90305688,13.277,13.269,226.0]
[1672900206668,15.90305688,13.277,13.271,20.0]
[1672900207195,15.90305688,13.277,13.27,226.0]
[1672900207393,15.90305688,13.277,13.27,282.56]
[1672900207605,15.90305688,13.277,13.27,20.0]
[1672900208027,15.90305688,13.277,13.27,302.56]
[1672900208231,15.90305688,13.277,13.27,246.0]
[1672900209094,15.90305688,13.277,13.27,20.0]
[1672900210148,15.90305688,13.277,13.269,226.0]
[1672900210761,15.90305688,13.277,13.27,20.0]
[1672900216573,41.80277696,13.28,13.27,20.0]
[1672900216790,15.90305688,13.279,13.27,20.0]
[1672900218136,15.90305688,13.279,13.269,342.6998]
[1672900218356,62.7583311,13.279,13.269,342.6998]
[1672900218780,15.90305688,13.278,13.269,342.6998]
[1672900219835,15.90305688,13.278,13.27,20.0]
[1672900220033,15.90305688,13.278,13.271,226.0]
[1672900221092,15.90305688,13.278,13.27,226.0]
[1672900221624,15.90305688,13.278,13.271,20.0]
[1672900223197,15.90305688,13.278,13.27,226.0]
[1672900224562,15.90305688,13.278,13.266,56.57]
[1672900224563,150.03707263,13.278,13.267,226.0]
[1672900224770,56.53,13.277,13.266,226.0]
[1672900225093,87.27874153,13.276,13.266,226.0]
[1672900225301,103.18179841,13.276,13.266,226.0]
[1672900225511,103.18179841,13.275,13.266,226.0]
[1672900225723,159.72179841,13.275,13.262,226.0]
[1672900225917,150.03707263,13.274,13.262,226.0]
[1672900226132,20.0,13.273,13.264,226.0]
[1672900226342,123.18179841,13.273,13.264,226.0]
[1672900226551,15.90305688,13.272,13.261,226.0]
[1672900226776,61.37902145,13.272,13.261,226.0]
[1672900227097,15.90305688,13.271,13.261,226.0]
[1672900227720,61.37902145,13.271,13.26,56.6]
[1672900227933,206.58707263,13.271,13.26,282.6]
[1672900228142,206.58707263,13.271,13.26,226.0]
[1672900228143,15.90305688,13.27,13.26,226.0]
[1672900229198,67.79235478,13.27,13.26,226.0]
[1672900229731,16.52250094,13.269,13.26,226.0]
[1672900230144,68.41179884,13.269,13.26,226.0]
[1672900230561,16.52250094,13.268,13.26,226.0]
[1672900231277,16.52250094,13.268,13.261,20.0]
[1672900231492,41.80277696,13.271,13.262,226.0]
[1672900231717,16.52250094,13.27,13.263,20.0]
[1672900231929,16.52250094,13.27,13.264,226.0]
[1672900232455,16.52250094,13.27,13.264,282.58]
[1672900232669,16.52250094,13.27,13.264,226.0]
[1672900233193,16.52250094,13.27,13.263,226.0]
[1672900233383,16.52250094,13.27,13.264,20.0]
[1672900233824,16.52250094,13.27,13.263,226.0]
[1672900235075,16.52250094,13.27,13.263,20.0]
[1672900235395,16.52250094,13.27,13.265,20.0]
[1672900236136,16.52250094,13.27,13.264,226.0]
[1672900236343,16.52250094,13.27,13.263,20.0]
[1672900236745,16.52250094,13.27,13.264,226.0]
[1672900237199,98.74457212,13.276,13.266,246.0]
[1672900237413,98.74457212,13.276,13.267,20.0]
[1672900237621,51.8892979,13.276,13.268,226.0]
[1672900238045,51.8892979,13.276,13.271,20.0]
[1672900238892,104.31371212,13.28,13.271,20.0]
[1672900239086,104.31371212,13.28,13.271,246.0]
[1672900239293,15.61286652,13.279,13.268,56.57]
[1672900239508,159.9240777,13.279,13.261,117.1087]
[1672900239716,84.93121118,13.278,13.261,117.1087]
[1672900239941,20.0,13.277,13.261,117.1087]
[1672900240152,217.95670894,13.277,13.261,117.1087]
[1672900240343,141.42670894,13.276,13.262,226.0]
[1672900240556,20.0,13.275,13.261,117.1087]
[1672900240771,217.96670894,13.275,13.261,117.1087]
[1672900241098,141.42670894,13.274,13.261,117.1087]
[1672900241293,20.0,13.273,13.261,117.1087]
[1672900241499,213.34965755,13.273,13.261,343.1087]
[1672900241712,100.5440777,13.272,13.261,343.1087]
[1672900241925,20.0,13.271,13.261,343.1087]
[1672900242135,74.99108935,13.271,13.261,343.1087]
[1672900242346,15.61286652,13.27,13.261,343.1087]
[1672900243073,69.26790546,13.27,13.261,343.1087]
[1672900243283,20.0,13.285,13.264,20.0]
[1672900243503,15.61286652,13.281,13.266,226.0]
[1672900243709,15.61286652,13.278,13.267,20.0]
[1672900243918,15.61286652,13.278,13.268,226.0]
[1672900245107,15.61286652,13.278,13.267,226.0]
[1672900245321,15.61286652,13.278,13.268,20.0]
[1672900247925,15.61286652,13.278,13.267,345.7441]
[1672900248982,100.5440777,13.278,13.267,226.0]
[1672900249192,119.08244022,13.277,13.262,20.0]
[1672900249420,130.07825535,13.277,13.262,20.0]
[1672900249610,130.07825535,13.277,13.264,226.0]
[1672900249611,20.0,13.275,13.264,226.0]
[1672900249937,51.93175209,13.274,13.264,226.0]
[1672900250124,108.47175209,13.274,13.264,226.0]
[1672900250339,57.16792394,13.273,13.264,226.0]
[1672900250763,16.23198698,13.272,13.263,20.0]
[1672900251416,16.23198698,13.272,13.262,226.0]
[1672900251919,57.16792394,13.272,13.262,226.0]
[1672900252450,16.23198698,13.271,13.261,226.0]
[1672900252657,16.23198698,13.271,13.26,339.5879]
[1672900252983,157.71319816,13.271,13.26,339.5879]
[1672900253408,20.0,13.269,13.26,339.5879]
[1672900253599,36.23198698,13.27,13.26,339.5879]
[1672900253811,16.23198698,13.268,13.26,339.5879]
[1672900255836,16.23198698,13.268,13.254,226.0]
[1672900256041,20.0,13.266,13.255,226.0]
[1672900256447,20.0,13.264,13.255,226.0]
[1672900256668,57.16792394,13.265,13.255,226.0]
[1672900256981,16.23198698,13.263,13.253,226.0]
[1672900257312,40.93593696,13.262,13.253,226.0]
[1672900257830,16.23198698,13.261,13.253,226.0]
[1672900259406,40.93593696,13.262,13.253,226.0]
[1672900259821,57.16792394,13.262,13.253,226.0]
[1672900260019,57.16792394,13.262,13.254,20.0]
[1672900260663,117.53593696,13.261,13.251,226.0]
[1672900260879,117.53593696,13.261,13.25,111.3767]
[1672900261072,57.16792394,13.26,13.25,111.3767]
[1672900261489,16.23198698,13.259,13.25,111.3767]
[1672900261698,16.23198698,13.259,13.251,226.0]
[1672900265289,57.16792394,13.259,13.251,226.0]
[1672900265698,16.23198698,13.258,13.251,226.0]
[1672900266642,20.0,13.264,13.251,226.0]
[1672900266643,20.0,13.27,13.252,20.0]
[1672900266859,16.23198698,13.258,13.252,20.0]
[1672900267070,16.23198698,13.258,13.251,398.1728]
[1672900267071,16.23198698,13.258,13.253,56.63]
[1672900267294,16.23198698,13.258,13.252,56.63]
[1672900268033,16.23198698,13.258,13.24,38.75]
[1672900268034,57.16792394,13.258,13.247,239.2058847]
[1672900268234,57.16792394,13.258,13.249,226.0]
[1672900269612,57.16792394,13.258,13.25,282.64]
[1672900269799,57.16792394,13.258,13.25,226.0]
[1672900270009,57.16792394,13.258,13.248,282.65]
[1672900270953,57.16792394,13.258,13.247,239.2058847]
[1672900271584,168.8291052,13.276,13.248,20.0]
[1672900271814,20.0,13.271,13.249,226.0]
[1672900272129,37.38815575,13.268,13.25,20.0]
[1672900272331,37.38815575,13.268,13.253,20.0]
[1672900272544,74.14259597,13.268,13.253,20.0]
[1672900272741,74.14259597,13.268,13.255,20.0]
[1672900273163,74.14259597,13.268,13.257,20.0]
[1672900273582,74.14259597,13.268,13.258,56.61]
[1672900274003,74.14259597,13.268,13.256,56.62]
[1672900275268,74.14259597,13.268,13.255,226.0]
[1672900275497,74.14259597,13.268,13.256,20.0]
[1672900275682,74.14259597,13.268,13.256,56.62]
[1672900276123,48.41958208,13.268,13.256,282.62]
[1672900276316,55.05526403,13.267,13.257,20.0]
[1672900276526,117.33734538,13.267,13.258,226.0]
[1672900276736,62.28208135,13.266,13.258,226.0]
[1672900276954,117.33734538,13.266,13.259,56.6]
[1672900277168,55.05526403,13.265,13.259,56.6]
[1672900277374,117.33734538,13.265,13.259,56.6]
[1672900277704,62.28208135,13.264,13.259,56.6]
[1672900278335,71.32579973,13.264,13.259,56.6]
[1672900278540,126.38106376,13.264,13.256,56.62]
[1672900278754,68.57751768,13.263,13.255,56.62]
[1672900278965,68.57751768,13.263,13.253,302.63]
[1672900279177,132.67650009,13.262,13.253,76.63]
[1672900279386,132.67650009,13.262,13.255,20.0]
[1672900279585,132.67650009,13.261,13.255,20.0]
[1672900279802,132.67650009,13.261,13.256,56.62]
[1672900280119,217.83553506,13.282,13.257,20.0]
[1672900280321,9.04371838,13.266,13.258,119.7443]
[1672900280522,37.13908442,13.277,13.26,20.0]
[1672900280740,46.1828028,13.277,13.26,20.0]
[1672900281066,56.53,13.276,13.262,20.0]
[1672900281387,142.26514872,13.276,13.262,20.0]
[1672900281580,142.26514872,13.276,13.264,20.0]
[1672900281797,9.04371838,13.275,13.264,20.0]
[1672900283168,65.58371838,13.275,13.264,20.0]
[1672900283583,56.54,13.275,13.264,20.0]
[1672900283799,9.04371838,13.274,13.264,20.0]
[1672900283995,9.04371838,13.274,13.267,20.0]
[1672900284643,9.04371838,13.274,13.264,20.0]
[1672900287146,37.13908442,13.276,13.264,20.0]
[1672900287470,83.92960581,13.279,13.267,20.0]
[1672900288307,15.11400581,13.279,13.267,20.0]
[1672900288528,56.5,13.284,13.27,20.0]
[1672900288732,15.11400581,13.283,13.272,226.0]
[1672900289059,15.11400581,13.283,13.273,20.0]
[1672900290511,56.51,13.282,13.273,20.0]
[1672900291055,56.51,13.282,13.264,246.0]
[1672900291245,15.11400581,13.281,13.266,246.0]
[1672900291456,106.02822525,13.281,13.266,246.0]
[1672900291681,90.91421944,13.28,13.267,20.0]
[1672900291876,15.11400581,13.282,13.268,226.0]
[1672900292086,56.5,13.283,13.269,20.0]
[1672900292314,56.5,13.284,13.27,226.0]
[1672900292510,15.11400581,13.284,13.271,20.0]
[1672900292722,56.5,13.283,13.271,20.0]
[1672900293250,56.49,13.285,13.271,20.0]
[1672900293458,15.11400581,13.282,13.271,20.0]
[1672900297022,15.11400581,13.282,13.271,246.0]
[1672900298594,15.11400581,13.282,13.271,20.0]
[1672900299754,15.11400581,13.282,13.269,226.0]
[1672900299959,20.0,13.28,13.267,20.0]
[1672900300185,115.9592,13.279,13.267,20.0]
[1672900300391,172.4792,13.279,13.267,20.0]
[1672900300609,15.11400581,13.278,13.267,20.0]
[1672900301037,56.53,13.277,13.267,20.0]
[1672900301659,15.11400581,13.276,13.267,20.0]
[1672900301876,56.52,13.278,13.267,20.0]
[1672900305550,56.52,13.278,13.266,226.0]
[1672900306723,56.52,13.278,13.267,20.0]
[1672900308191,15.11400581,13.277,13.267,20.0]
[1672900308611,56.53,13.276,13.267,20.0]
[1672900309225,15.11400581,13.275,13.267,20.0]
[1672900309981,15.11400581,13.275,13.266,226.0]
[1672900311013,15.11400581,13.275,13.267,20.0]
[1672900313009,37.13908442,13.282,13.267,20.0]
[1672900313337,115.0883,13.29,13.272,20.0]
[1672900313544,115.0883,13.29,13.275,20.0]
[1672900313869,56.48,13.289,13.275,20.0]
[1672900316576,56.49,13.285,13.275,20.0]
[1672900318497,50.0,13.305,13.275,20.0]
[1672900318704,112.8175,13.298,13.278,20.0]
[1672900319108,56.46,13.292,13.28,226.0]
[1672900319315,20.0,13.291,13.277,226.0]
[1672900319743,56.47,13.29,13.278,20.0]
[1672900319950,56.47,13.29,13.277,226.0]
[1672900320274,20.0,13.289,13.274,226.0]
[1672900320808,56.48,13.288,13.275,20.0]
[1672900321016,20.0,13.289,13.275,20.0]
[1672900321017,41.60202847,13.289,13.276,226.0]
[1672900321209,56.48,13.287,13.277,20.0]
[1672900321419,56.48,13.288,13.277,20.0]
[1672900321629,56.49,13.286,13.277,20.0]
[1672900321840,56.47,13.291,13.279,226.0]
[1672900322051,56.47,13.291,13.28,20.0]
[1672900322365,56.46,13.292,13.28,20.0]
[1672900322581,56.45,13.295,13.281,226.0]
[1672900322796,56.44,13.298,13.282,20.0]
[1672900323127,56.45,13.294,13.283,226.0]
[1672900323324,56.44,13.297,13.284,20.0]
[1672900323539,56.44,13.298,13.284,20.0]
[1672900323853,56.45,13.296,13.284,20.0]
[1672900324044,37.34650451,13.301,13.284,20.0]
[1672900324045,56.44,13.297,13.284,20.0]
[1672900324258,56.45,13.295,13.284,20.0]
[1672900324466,157.84423721,13.32,13.286,246.0]
[1672900324684,108.014,13.32,13.288,226.0]
[1672900324897,20.0,13.313,13.289,20.0]
[1672900325099,56.41,13.304,13.29,226.0]
[1672900325306,56.41,13.304,13.291,20.0]
[1672900328043,119.0636,13.321,13.292,263.0]
[1672900328251,108.9517,13.319,13.293,20.0]
[1672900328463,108.9517,13.319,13.294,263.0]
[1672900328681,56.37,13.313,13.296,226.0]
[1672900329008,56.37,13.313,13.297,20.0]
[1672900329193,56.37,13.313,13.297,76.44]
[1672900329413,56.37,13.313,13.297,20.0]
[1672900329738,56.37,13.313,13.298,226.0]
[1672900330051,56.37,13.313,13.299,20.0]
[1672900339510,39.76547514,13.312,13.291,226.0]
[1672900339724,39.76547514,13.312,13.281,20.0]
[1672900339725,20.0,13.311,13.29,20.0]
[1672900339930,226.61561764,13.311,13.29,20.0]
[1672900340134,20.0,13.309,13.29,20.0]
[1672900340551,177.22446396,13.308,13.29,20.0]
[1672900340981,113.4754,13.307,13.29,20.0]
[1672900341491,56.4,13.306,13.29,20.0]
[1672900341913,56.4,13.306,13.291,20.0]
[1672900342128,56.4,13.306,13.292,226.0]
[1672900342338,56.4,13.306,13.293,20.0]
[1672900343701,56.38,13.311,13.295,20.0]
[1672900343930,56.41,13.305,13.295,20.0]
[1672900344134,56.39,13.31,13.295,20.0]
[1672900344667,56.38,13.311,13.295,20.0]
[1672900344870,80.48669299,13.312,13.295,20.0]
[1672900344871,56.39,13.309,13.295,20.0]
[1672900345084,56.38,13.311,13.295,20.0]
[1672900345398,92.43837785,13.311,13.295,20.0]
[1672900346646,140.31848225,13.326,13.301,226.0]
[1672900346856,118.9449,13.327,13.303,20.0]
[1672900347179,118.9449,13.327,13.305,20.0]
[1672900347393,56.32,13.326,13.306,20.0]
[1672900347608,56.32,13.326,13.307,226.0]
[1672900347800,56.32,13.326,13.308,20.0]
[1672900348551,56.32,13.326,13.302,226.0]
[1672900348771,20.0,13.324,13.302,226.0]
[1672900348960,20.0,13.324,13.303,20.0]
[1672900349170,20.0,13.322,13.303,20.0]
[1672900349580,20.0,13.32,13.295,20.0]
[1672900350018,215.07774211,13.319,13.295,20.0]
[1672900350442,20.0,13.317,13.295,246.0]
[1672900350852,220.56507544,13.316,13.295,246.0]
[1672900351053,125.78095742,13.316,13.295,246.0]
[1672900351269,125.22121978,13.315,13.299,20.0]
[1672900351478,125.22121978,13.315,13.3,17.0]
[1672900351806,68.85121978,13.314,13.301,226.0]
[1672900352015,68.85121978,13.314,13.301,345.687]
[1672900352337,56.37,13.313,13.302,20.0]
[1672900353788,125.22121978,13.313,13.302,20.0]
[1672900354003,68.85121978,13.313,13.302,20.0]
[1672900354321,56.38,13.312,13.302,20.0]
[1672900354752,68.85121978,13.311,13.302,20.0]
[1672900355472,41.28411802,13.316,13.312,226.0]
[1672900355683,117.4541,13.328,13.314,20.0]
[1672900355896,117.4541,13.328,13.315,9.5442577]
[1672900356104,56.31,13.327,13.316,20.0]
[1672900357473,51.2976474,13.326,13.311,323.05161198]
[1672900357690,20.0,13.325,13.311,323.05161198]
[1672900357897,132.40933727,13.325,13.311,323.05161198]
[1672900358112,20.0,13.323,13.311,323.05161198]
[1672900358316,122.37233057,13.324,13.311,97.05161198]
[1672900358548,122.37233057,13.322,13.311,97.05161198]
[1672900359071,178.71233057,13.321,13.311,97.05161198]
[1672900359381,56.08933727,13.32,13.311,97.05161198]
[1672900359590,20.0,13.319,13.311,97.05161198]
[1672900359813,142.6329933,13.319,13.311,97.05161198]
[1672900360120,113.63381412,13.318,13.311,97.05161198]
[1672900360427,113.63381412,13.317,13.311,97.05161198]
[1672900360639,169.99381412,13.317,13.311,97.05161198]
[1672900360958,113.63381412,13.316,13.311,97.05161198]
[1672900361374,170.00381412,13.315,13.311,97.05161198]
[1672900361573,113.63381412,13.315,13.311,97.05161198]
[1672900361784,116.77658697,13.314,13.311,97.05161198]
[1672900362000,170.00381412,13.314,13.311,97.05161198]
[1672900362206,60.40658697,13.313,13.311,97.05161198]
[1672900362530,53.22722715,13.313,13.311,97.05161198]
[1672900362745,56.34,13.322,13.312,20.0]
[1672900362939,53.22722715,13.321,13.312,20.0]
[1672900363151,109.56722715,13.321,13.312,20.0]
[1672900363359,53.22722715,13.321,13.312,20.0]
[1672900363569,109.56722715,13.32,13.312,20.0]
[1672900363782,53.22722715,13.32,13.312,20.0]
[1672900363985,56.35,13.319,13.312,20.0]
[1672900365064,53.22722715,13.32,13.312,20.0]
[1672900365876,56.33,13.323,13.312,20.0]
[1672900366091,254.56388225,13.346,13.314,226.0]
[1672900366321,114.2454,13.339,13.315,8.13849892]
[1672900366522,114.2454,13.339,13.316,246.0]
[1672900366725,56.27,13.338,13.318,20.0]
[1672900366938,56.27,13.338,13.319,20.0]
[1672900367151,56.27,13.338,13.32,226.0]
[1672900367475,56.27,13.338,13.321,20.0]
[1672900368114,56.27,13.338,13.323,20.0]
[1672900370007,56.26,13.341,13.326,20.0]
[1672900370227,109.5347,13.349,13.326,20.0]
[1672900370228,56.23,13.348,13.326,20.0]
[1672900370414,109.5347,13.349,13.328,20.0]
[1672900370415,56.26,13.34,13.328,20.0]
[1672900370621,56.23,13.347,13.328,20.0]
[1672900370839,56.23,13.348,13.328,20.0]
[1672900371152,109.5347,13.349,13.328,20.0]